fUSD/lending_fUSD_20250305
["ID","MTS","AMOUNT","RATE_DAILY","PERIOD"]
[355455606,1741182650241,-2687.59,0.00011373,2]
[355455607,1741182650252,-1545.38,0.00011373,2]
[355455608,1741182650263,-11742.96,0.00011373,2]
[355455609,1741182650274,-562.87,0.00011373,2]
[355455610,1741182650284,-18168.72,0.00011373,2]
[355455611,1741182650295,-1214.44,0.00011373,2]
[355455612,1741182650306,-699.81,0.00011373,2]
[355455613,1741182650318,-500.0,0.00011373,2]
[355455614,1741182650328,-1785.11,0.00011373,2]
[355455615,1741182650339,-500.0,0.00011373,2]
[355455616,1741182650349,-1209.58,0.00011373,2]
[355455617,1741182650361,-640.26,0.00011373,2]
[355455618,1741182650371,-500.0,0.00011373,2]
[355455619,1741182650385,-535.92,0.00011373,2]
[355455620,1741182650395,-1006.11,0.00011373,2]
[355455621,1741182650406,-500.0,0.00011373,2]
[355455622,1741182650418,-672.83,0.00011373,2]
[355455623,1741182650428,-500.0,0.00011373,2]
[355455624,1741182650438,-500.0,0.00011373,2]
[355455625,1741182650450,-500.0,0.00011373,2]
[355455626,1741182650462,-6938.41,0.00011373,2]
[355455627,1741182650473,-899.7,0.00011373,2]
[355455628,1741182650484,-1406.01783836,0.00011383,2]
[355455629,1741182650497,-2000.0,0.00011388,2]
[355455630,1741182650507,-1181.23492448,0.00011388,2]
[355455631,1741182650518,-161.05,0.0001139,2]
[355455632,1741182650529,-518.91426565,0.000114,2]
[355455633,1741182650539,-825.19,0.00011409,2]
[355455634,1741182650550,-663.16,0.00011409,2]
[355455635,1741182650561,-825.97,0.00011409,2]
[355455636,1741182650571,-500.0,0.00011409,2]
[355455637,1741182650582,-500.0,0.00011409,2]
[355455638,1741182650592,-985.54,0.00011409,2]
[355455639,1741182650602,-623.8,0.00011409,2]
[355455640,1741182650613,-1008.69,0.00011409,2]
[355455641,1741182650624,-565.52,0.00011409,2]
[355455642,1741182650634,-500.0,0.00011409,2]
[355455643,1741182650644,-500.0,0.00011409,2]
[355455644,1741182650655,-500.0,0.00011409,2]
[355455645,1741182650665,-582.79,0.00011409,2]
[355455646,1741182650676,-850.5,0.00011409,2]
[355455647,1741182650686,-500.0,0.00011409,2]
[355455648,1741182650696,-500.0,0.00011409,2]
[355455649,1741182650707,-801.6,0.00011409,2]
[355455650,1741182650717,-529.91,0.00011409,2]
[355455651,1741182650728,-573.43,0.00011409,2]
[355455652,1741182650739,-500.0,0.00011409,2]
[355455653,1741182650751,-550.91,0.00011409,2]
[355455654,1741182650761,-818.43,0.00011409,2]
[355455655,1741182650772,-500.0,0.00011409,2]
[355455656,1741182650782,-1007.78,0.00011409,2]
[355455657,1741182650793,-1099.91,0.00011409,2]
[355455658,1741182650803,-500.0,0.00011409,2]
[355455659,1741182650813,-500.0,0.00011409,2]
[355455660,1741182650824,-500.0,0.00011409,2]
[355455661,1741182650834,-595.77,0.00011409,2]
[355455662,1741182650845,-568.01,0.00011409,2]
[355455663,1741182650855,-542.34,0.00011409,2]
[355455664,1741182650865,-500.0,0.00011409,2]
[355455665,1741182650876,-500.0,0.00011409,2]
[355455666,1741182650886,-787.01,0.00011409,2]
[355455667,1741182650897,-559.2,0.00011409,2]
[355455668,1741182650907,-1278.49,0.00011409,2]
[355455669,1741182650919,-940.2,0.00011409,2]
[355455670,1741182650929,-500.0,0.00011409,2]
[355455671,1741182650938,-1499.41,0.00011409,2]
[355455672,1741182650947,-1367.26,0.00011409,2]
[355455673,1741182650956,-861.44,0.00011409,2]
[355455674,1741182650965,-500.0,0.00011409,2]
[355455675,1741182650974,-1436.09,0.00011409,2]
[355455676,1741182650983,-500.0,0.00011409,2]
[355455677,1741182650993,-1089.3,0.00011409,2]
[355455678,1741182651001,-715.28,0.00011409,2]
[355455679,1741182651011,-1243.25,0.00011409,2]
[355455680,1741182651020,-500.0,0.00011409,2]
[355455681,1741182651029,-1422.42,0.00011409,2]
[355455682,1741182651038,-1413.78,0.00011409,2]
[355455683,1741182651047,-763.34,0.00011409,2]
[355455684,1741182651056,-2064.83,0.00011409,2]
[355455685,1741182651065,-500.0,0.00011409,2]
[355455686,1741182651074,-500.0,0.00011409,2]
[355455687,1741182651083,-500.0,0.00011409,2]
[355455688,1741182651092,-7149.35,0.00011409,2]
[355455689,1741182651611,-1814.23,0.00011409,2]
[355455690,1741182651696,-620.01,0.00011409,2]
[355455691,1741182651715,-6015.65,0.00011409,2]
[355455692,1741182651739,-560.94,0.00011409,2]
[355455693,1741182651750,-2146.47,0.00011409,2]
[355455694,1741182651759,-1122.69,0.00011409,2]
[355455695,1741182651769,-855.25,0.00011409,2]
[355455696,1741182651778,-685.86,0.00011409,2]
[355455697,1741182651787,-504.79,0.00011409,2]
[355455698,1741182651796,-5894.54,0.00011409,2]
[355455699,1741182651805,-2964.94,0.00011409,2]
[355455700,1741182651814,-1146.71,0.00011409,2]
[355455701,1741182651823,-6469.3,0.00011409,2]
[355455702,1741182651832,-3771.78,0.00011409,2]
[355455703,1741182651842,-1393.22,0.00011409,2]
[355455704,1741182651851,-322.06053319,0.00011409,2]
[355455705,1741182651860,-1493.98,0.00011409,2]
[355455706,1741182651870,-2407.16,0.00011409,2]
[355455707,1741182651879,-839.42,0.00011409,2]
[355455708,1741182651888,-4464.05,0.00011409,2]
[355455709,1741182651897,-2229.42,0.00011409,2]
[355455710,1741182651907,-502.12,0.00011409,2]
[355455711,1741182651917,-3325.24,0.00011409,2]
[355455712,1741182651926,-1230.79,0.00011409,2]
[355455713,1741182651935,-2839.53,0.00011409,2]
[355455714,1741182651944,-10137.7,0.00011409,2]
[355455715,1741182651952,-1136.54,0.00011409,2]
[355455716,1741182651961,-642.34,0.00011409,2]
[355455717,1741182651970,-968.65,0.00011409,2]
[355455718,1741182651979,-1150.12,0.00011409,2]
[355455719,1741182651988,-717.84,0.00011409,2]
[355455720,1741182651999,-2187.7,0.00011409,2]
[355455721,1741182652008,-597.6,0.00011409,2]
[355455722,1741182652017,-2073.21,0.00011409,2]
[355455723,1741182652026,-894.97,0.00011409,2]
[355455724,1741182652036,-1016.09,0.00011409,2]
[355455725,1741182652044,-855.0,0.0001141,2]
[355455726,1741182652053,-191.54793389,0.0001141,2]
[355455727,1741182652063,-667.68,0.0001141,2]
[355455728,1741182652072,-500.0,0.0001141,2]
[355455729,1741182652080,-701.98,0.0001141,2]
[355455730,1741182652089,-691.49,0.0001141,2]
[355455731,1741182652098,-695.15,0.0001141,2]
[355455732,1741182652107,-500.0,0.0001141,2]
[355455733,1741182652116,-852.93,0.0001141,2]
[355455734,1741182652125,-500.0,0.0001141,2]
[355455735,1741182652135,-697.39,0.0001141,2]
[355455736,1741182652143,-500.0,0.0001141,2]
[355455737,1741182652152,-500.0,0.0001141,2]
[355455738,1741182652161,-500.0,0.0001141,2]
[355455739,1741182652170,-500.0,0.0001141,2]
[355455740,1741182652179,-762.93,0.0001141,2]
[355455741,1741182652188,-861.88,0.0001141,2]
[355455742,1741182652197,-500.0,0.0001141,2]
[355455743,1741182652206,-733.37,0.0001141,2]
[355455744,1741182652215,-500.0,0.0001141,2]
[355455745,1741182652223,-580.56,0.0001141,2]
[355455746,1741182652232,-573.1,0.0001141,2]
[355455747,1741182652241,-581.26,0.0001141,2]
[355455748,1741182652252,-500.0,0.0001141,2]
[355455749,1741182652261,-167.00577632,0.0001141,2]
[355455750,1741182652270,-549.57,0.0001141,2]
[355455751,1741182652279,-1014.87,0.0001141,2]
[355455752,1741182652288,-899.25,0.0001141,2]
[355455753,1741182652296,-1606.29,0.0001141,2]
[355455754,1741182652305,-1040.91,0.0001141,2]
[355455755,1741182652314,-500.0,0.0001141,2]
[355455756,1741182652324,-500.0,0.0001141,2]
[355455757,1741182652332,-1010.22,0.0001141,2]
[355455758,1741182652342,-742.2,0.0001141,2]
[355455759,1741182652351,-591.55,0.0001141,2]
[355455760,1741182652360,-894.36,0.0001141,2]
[355455761,1741182652369,-684.89,0.0001141,2]
[355455762,1741182652379,-632.5,0.0001141,2]
[355455763,1741182652391,-897.98,0.0001141,2]
[355455764,1741182652400,-566.49,0.0001141,2]
[355455765,1741182652416,-1857.88,0.0001141,2]
[355455766,1741182652427,-573.86,0.0001141,2]
[355455767,1741182652435,-500.0,0.0001141,2]
[355455768,1741182652445,-500.0,0.0001141,2]
[355455769,1741182652454,-500.0,0.0001141,2]
[355455770,1741182652464,-1773.2,0.0001141,2]
[355455771,1741182652474,-1702.45,0.0001141,2]
[355455772,1741182652483,-500.0,0.0001141,2]
[355455773,1741182652492,-927.55,0.0001141,2]
[355455774,1741182652503,-1962.68,0.0001141,2]
[355455775,1741182652512,-370.75089631,0.0001141,2]
[355455776,1741182652521,-561.93,0.0001141,2]
[355455777,1741182652530,-1573.79,0.0001141,2]
[355455778,1741182652540,-923.56,0.0001141,2]
[355455779,1741182652549,-500.0,0.0001141,2]
[355455780,1741182652558,-443.61935351,0.0001141,2]
[355455781,1741182652567,-500.0,0.0001141,2]
[355455782,1741182652576,-615.04,0.0001141,2]
[355455783,1741182652585,-1684.24,0.0001141,2]
[355455784,1741182652594,-1240.3,0.0001141,2]
[355455785,1741182652603,-500.0,0.0001141,2]
[355455786,1741182652612,-664.97,0.0001141,2]
[355455787,1741182652621,-500.0,0.0001141,2]
[355455788,1741182652630,-541.83815452,0.0001141,2]
[355455789,1741182652639,-668.65,0.0001141,2]
[355455790,1741182652648,-500.0,0.0001141,2]
[355455791,1741182652657,-500.0,0.0001141,2]
[355455792,1741182652666,-500.0,0.0001141,2]
[355455793,1741182652675,-691.88,0.0001141,2]
[355455794,1741182652684,-664.61,0.0001141,2]
[355455795,1741182652693,-500.0,0.0001141,2]
[355455796,1741182652702,-500.0,0.0001141,2]
[355455797,1741182652711,-500.0,0.0001141,2]
[355455798,1741182652719,-1108.61,0.0001141,2]
[355455799,1741182652729,-500.0,0.0001141,2]
[355455800,1741182652739,-500.0,0.0001141,2]
[355455801,1741182652751,-712.59,0.0001141,2]
[355455802,1741182652761,-1257.46,0.0001141,2]
[355455803,1741182652771,-848.2,0.0001141,2]
[355455804,1741182652781,-851.12,0.0001141,2]
[355455805,1741182652790,-741.36,0.0001141,2]
[355455806,1741182652799,-963.66,0.0001141,2]
[355455807,1741182652809,-500.0,0.0001141,2]
[355455808,1741182652818,-500.0,0.0001141,2]
[355455809,1741182652828,-838.99,0.0001141,2]
[355455810,1741182652838,-1057.46,0.0001141,2]
[355455811,1741182652847,-1248.93,0.0001141,2]
[355455812,1741182652857,-1725.99,0.0001141,2]
[355455813,1741182652867,-1119.83,0.0001141,2]
[355455814,1741182652876,-500.0,0.0001141,2]
[355455815,1741182652886,-500.0,0.0001141,2]
[355455816,1741182652895,-500.0,0.0001141,2]
[355455817,1741182652905,-2209.23,0.0001141,2]
[355455818,1741182652915,-1101.62,0.0001141,2]
[355455819,1741182652925,-712.22,0.0001141,2]
[355455820,1741182652934,-1079.84,0.0001141,2]
[355455821,1741182652944,-500.0,0.0001141,2]
[355455822,1741182652955,-1492.0,0.0001141,2]
[355455823,1741182652965,-1224.2,0.0001141,2]
[355455824,1741182652976,-1110.07,0.0001141,2]
[355455825,1741182652986,-1264.79,0.0001141,2]
[355455826,1741182652999,-854.74,0.0001141,2]
[355455827,1741182653008,-500.0,0.0001141,2]
[355455828,1741182653017,-869.53,0.0001141,2]
[355455829,1741182653027,-500.0,0.0001141,2]
[355455830,1741182653036,-1429.6,0.0001141,2]
[355455831,1741182653046,-728.7,0.0001141,2]
[355455832,1741182653055,-500.0,0.0001141,2]
[355455833,1741182653065,-949.32,0.0001141,2]
[355455834,1741182653074,-500.0,0.0001141,2]
[355455835,1741182653084,-740.19,0.0001141,2]
[355455836,1741182653094,-1294.78,0.0001141,2]
[355455837,1741182653103,-533.46364403,0.0001141,2]
[355455838,1741182653112,-902.5,0.0001141,2]
[355455839,1741182653121,-703.72,0.0001141,2]
[355455840,1741182653131,-1143.22,0.0001141,2]
[355455841,1741182653140,-818.51,0.0001141,2]
[355455842,1741182653150,-743.73,0.0001141,2]
[355455843,1741182653159,-783.24,0.0001141,2]
[355455844,1741182653169,-500.0,0.0001141,2]
[355455845,1741182653178,-1243.07,0.0001141,2]
[355455846,1741182653188,-701.63,0.0001141,2]
[355455847,1741182653199,-521.11,0.0001141,2]
[355455848,1741182653212,-1340.52,0.0001141,2]
[355455849,1741182653224,-714.53,0.0001141,2]
[355455850,1741182653241,-2233.63,0.0001141,2]
[355455851,1741182653256,-563.77154356,0.0001141,2]
[355455852,1741182653266,-500.0,0.0001141,2]
[355455853,1741182653276,-961.3,0.0001141,2]
[355455854,1741182653288,-1121.71,0.0001141,2]
[355455855,1741182653298,-500.0,0.0001141,2]
[355455856,1741182653309,-500.0,0.0001141,2]
[355455857,1741182653320,-500.0,0.0001141,2]
[355455858,1741182653330,-1301.04,0.0001141,2]
[355455859,1741182653340,-2060.95,0.0001141,2]
[355455860,1741182653351,-2297.18,0.0001141,2]
[355455861,1741182653363,-744.92,0.0001141,2]
[355455862,1741182653379,-724.24,0.0001141,2]
[355455863,1741182653388,-2185.54,0.0001141,2]
[355455864,1741182653397,-854.49,0.0001141,2]
[355455865,1741182653409,-2423.53,0.0001141,2]
[355455866,1741182653419,-500.0,0.0001141,2]
[355455867,1741182653429,-500.0,0.0001141,2]
[355455868,1741182653438,-1191.38,0.0001141,2]
[355455869,1741182653448,-736.04,0.0001141,2]
[355455870,1741182653458,-9250.5,0.0001141,2]
[355455871,1741182653474,-500.0,0.0001141,2]
[355455872,1741182653488,-500.0,0.0001141,2]
[355455873,1741182653501,-1582.82,0.0001141,2]
[355455874,1741182653511,-718.57,0.0001141,2]
[355455875,1741182653523,-500.0,0.0001141,2]
[355455876,1741182653534,-5980.25,0.0001141,2]
[355455877,1741182653546,-500.0,0.0001141,2]
[355455878,1741182653556,-1092.17,0.0001141,2]
[355455879,1741182653566,-500.0,0.0001141,2]
[355455880,1741182653577,-500.0,0.0001141,2]
[355455881,1741182653589,-500.0,0.0001141,2]
[355455882,1741182653602,-28476.63,0.0001141,2]
[355455883,1741182653619,-500.0,0.0001141,2]
[355455884,1741182653630,-500.0,0.0001141,2]
[355455885,1741182653643,-500.0,0.0001141,2]
[355455886,1741182653654,-746.31,0.0001141,2]
[355455887,1741182653665,-1344.63,0.0001141,2]
[355455888,1741182653677,-1785.76,0.0001141,2]
[355455889,1741182653690,-500.0,0.0001141,2]
[355455890,1741182653699,-1487.03,0.0001141,2]
[355455891,1741182653709,-455.90346093,0.0001141,2]
[355455892,1741182653718,-1400.31,0.0001141,2]
[355455893,1741182653727,-513.72960154,0.0001141,2]
[355455894,1741182653736,-500.0,0.0001141,2]
[355455895,1741182653747,-500.0,0.0001141,2]
[355455896,1741182653756,-1554.81,0.0001141,2]
[355455897,1741182653765,-500.0,0.0001141,2]
[355455898,1741182653774,-500.0,0.0001141,2]
[355455899,1741182653783,-4149.0,0.0001141,2]
[355455900,1741182653793,-500.0,0.0001141,2]
[355455901,1741182653803,-500.0,0.0001141,2]
[355455902,1741182653812,-500.0,0.0001141,2]
[355455903,1741182653821,-27852.70030558,0.0001141,2]
[355455904,1741182653842,-1225.28875366,0.0001141,2]
[355455905,1741182655123,-150.0,0.00011302,2]
[355455906,1741182655134,-798.09401731,0.0001141,2]
[355455907,1741182655146,-1672.28569968,0.0001141,2]
[355455908,1741182655172,-532.25122377,0.0001141,2]
[355455909,1741182655182,-500.0,0.0001141,2]
[355455910,1741182655191,-346.05567574,0.0001141,2]
[355455911,1741182655201,-1080.16,0.0001141,2]
[355455912,1741182655213,-1053.35,0.0001141,2]
[355455913,1741182655222,-500.0,0.0001141,2]
[355455914,1741182655233,-500.0,0.0001141,2]
[355455915,1741182655243,-785.26,0.0001141,2]
[355455916,1741182655255,-500.0,0.0001141,2]
[355455917,1741182655265,-500.0,0.0001141,2]
[355455918,1741182655275,-1430.66,0.0001141,2]
[355455919,1741182655285,-625.71,0.0001141,2]
[355455920,1741182655295,-500.0,0.0001141,2]
[355455921,1741182655305,-500.0,0.0001141,2]
[355455922,1741182655315,-1253.96,0.0001141,2]
[355455923,1741182655324,-500.0,0.0001141,2]
[355455924,1741182655334,-500.0,0.0001141,2]
[355455925,1741182655345,-1327.23,0.0001141,2]
[355455926,1741182655355,-6345.73,0.0001141,2]
[355455927,1741182655366,-500.0,0.0001141,2]
[355455928,1741182655381,-1100.81,0.0001141,2]
[355455929,1741182655391,-754.44,0.0001141,2]
[355455930,1741182655400,-500.0,0.0001141,2]
[355455931,1741182655410,-523.44754462,0.0001141,2]
[355455932,1741182655420,-2124.55,0.0001141,2]
[355455933,1741182655431,-500.0,0.0001141,2]
[355455934,1741182655440,-500.0,0.0001141,2]
[355455935,1741182655450,-705.32,0.0001141,2]
[355455936,1741182655460,-5792.77,0.0001141,2]
[355455937,1741182655470,-151.831321,0.0001141,2]
[355455938,1741182655480,-500.0,0.0001141,2]
[355455939,1741182655490,-323.88283685,0.0001141,2]
[355455940,1741182655502,-500.0,0.0001141,2]
[355455941,1741182655511,-5067.14,0.0001141,2]
[355455942,1741182655521,-500.0,0.0001141,2]
[355455943,1741182655530,-596.31,0.0001141,2]
[355455944,1741182655539,-500.0,0.0001141,2]
[355455945,1741182655549,-4387.26,0.0001141,2]
[355455946,1741182655558,-116.87139802,0.0001141,2]
[355455947,1741182656513,-1470.44860198,0.0001141,2]
[355455948,1741182656523,-1308.66,0.0001141,2]
[355455949,1741182656533,-500.0,0.0001141,2]
[355455950,1741182656542,-1172.88,0.0001141,2]
[355455951,1741182656553,-500.0,0.0001141,2]
[355455952,1741182656562,-500.0,0.0001141,2]
[355455953,1741182656572,-374.96620223,0.00011411,2]
[355455954,1741182657782,-321.2067741,0.00011,2]
[355455955,1741182657792,-455.88011116,0.00011099,2]
[355455956,1741182657803,-373.86988884,0.00011099,2]
[355455957,1741182657813,-139.98011125,0.00011135,2]
[355455958,1741182657830,-360.01988875,0.00011135,2]
[355455959,1741182657840,-500.0,0.00011136,2]
[355455960,1741182657850,-500.0,0.00011136,2]
[355455961,1741182657859,-829.75,0.00011373,2]
[355455962,1741182657869,-151.89212264,0.00011409,2]
[355455963,1741182657878,-127.41849861,0.0001141,2]
[355455964,1741182657909,-372.58150139,0.0001141,2]
[355455965,1741182657918,-500.0,0.00011411,2]
[355455966,1741182657928,-972.85,0.00011411,2]
[355455967,1741182657937,-500.0,0.00011411,2]
[355455968,1741182657946,-500.0,0.00011411,2]
[355455969,1741182657957,-500.0,0.00011411,2]
[355455970,1741182657967,-500.0,0.00011411,2]
[355455971,1741182657976,-966.8,0.00011411,2]
[355455972,1741182657985,-386.13464878,0.00011411,2]
[355455973,1741182658001,-113.86535122,0.00011411,2]
[355455974,1741182658010,-500.0,0.00011411,2]
[355455975,1741182658020,-500.0,0.00011411,2]
[355455976,1741182658029,-670.83481253,0.00011411,2]
[355455977,1741182658041,-318.8803487,0.00011411,2]
[355455979,1741182984862,1531.04,8.416e-05,2]
[355456519,1741183122995,200.0,0.00010192,2]
[355456521,1741183148069,2253.12,0.00010193,2]
[355456524,1741183321485,2000.0,0.00010168,2]
[355456525,1741183346137,287.2,0.00010179,2]
[355456527,1741183371105,150.0,0.00010164,7]
[355456533,1741183522763,1000.0,0.00010142,2]
[355456534,1741183550717,83.73,0.00010155,2]
[355456535,1741183550745,80.55,0.00010155,2]
[355456536,1741183577565,517.95,0.00010167,2]
[355456550,1741183744393,9401.5,0.0001,2]
[355456551,1741183744417,5321.82,0.0001,2]
[355456554,1741183762594,157.52,0.00010127,2]
[355456555,1741183762854,157.52,0.00010181,2]
[355456556,1741183763031,157.52,0.00010235,2]
[355456566,1741183824824,-10000.0,0.00010257,2]
[355456568,1741183826672,-10000.0,0.00010257,2]
[355456569,1741183828523,-3900.0,0.00010257,2]
[355456570,1741183828547,-157.52,0.00010289,2]
[355456599,1741183832132,-157.52,0.00010343,2]
[355456600,1741183832142,-157.52,0.00010397,2]
[355456601,1741183832152,-250.0,0.00010435,2]
[355456602,1741183832162,-157.52,0.00010451,2]
[355456603,1741183832171,-157.52,0.00010505,2]
[355456604,1741183832181,-157.52,0.00010559,2]
[355456605,1741183832190,-157.52,0.00010613,2]
[355456606,1741183832200,-157.52,0.00010667,2]
[355456607,1741183832211,-1321.56,0.0001068,2]
[355456608,1741183832223,-209.48,0.0001068,2]
[355456609,1741183832232,-157.52,0.00010721,2]
[355456610,1741183832242,-1459.4174828,0.0001076,2]
[355456611,1741183832251,-150.0,0.00010769,2]
[355456612,1741183832261,-1522.95344801,0.0001077,2]
[355456613,1741183832273,-4458.09753364,0.0001077,2]
[355456614,1741183832299,-500.0,0.0001077,2]
[355456615,1741183832313,-1434.30223989,0.0001077,2]
[355456616,1741183832325,-6927.63500677,0.0001077,2]
[355456617,1741183832337,-774.42493428,0.0001077,2]
[355456620,1741183832386,-10852.23557576,0.0001077,2]
[355456666,1741183837955,-1925.45833882,0.0001077,2]
[355456667,1741183837968,-1604.89292283,0.0001077,2]
[355456668,1741183837978,-157.52,0.00010775,2]
[355456669,1741183837988,-157.52,0.00010829,2]
[355456670,1741183837998,-157.52,0.00010883,2]
[355456671,1741183838008,-157.52,0.00010937,2]
[355456672,1741183838017,-4.80958781,0.00010959,2]
[355456673,1741183838029,-145.19041219,0.00010959,2]
[355456674,1741183838039,-309.69311757,0.00010998,2]
[355456675,1741183838049,-1000.0,0.00010999,2]
[355456676,1741183838059,-420.85647024,0.00010999,2]
[355456677,1741183838070,-79.14352976,0.00010999,2]
[355456678,1741183838080,-397.1099,0.00010999,2]
[355456679,1741183838091,-2054.80164452,0.00010999,2]
[355456680,1741183838122,-2692.05,0.00010999,2]
[355456688,1741183840294,250.0,0.00010123,2]
[355456689,1741183840330,-5636.29565548,0.00010999,2]
[355456690,1741183840340,-388.3865,0.00010999,2]
[355456691,1741183840350,-5000.0,0.00010999,2]
[355456692,1741183840359,-150.99,0.00010999,2]
[355456693,1741183840369,-9999.99,0.00010999,2]
[355456694,1741183840379,-21541.3115,0.00011,2]
[355456695,1741183840388,-289.38484104,0.00011034,2]
[355456696,1741183840398,-176.17587524,0.00011054,2]
[355456697,1741183840407,-500.0,0.00011073,2]
[355456698,1741183840418,-1387.37,0.00011097,2]
[355456699,1741183840428,-2444.51,0.00011097,2]
[355456700,1741183840438,-1224.95,0.00011097,2]
[355456701,1741183840448,-876.61,0.00011097,2]
[355456702,1741183840459,-500.0,0.00011097,2]
[355456703,1741183840470,-500.0,0.00011097,2]
[355456704,1741183840479,-2506.79,0.00011097,2]
[355456705,1741183840489,-1530.86,0.00011097,2]
[355456706,1741183840499,-664.55,0.00011097,2]
[355456707,1741183840510,-500.0,0.00011097,2]
[355456708,1741183840521,-1383.11,0.00011097,2]
[355456709,1741183840531,-1179.55,0.00011097,2]
[355456710,1741183840541,-4139.59,0.00011097,2]
[355456711,1741183840552,-2502.27,0.00011097,2]
[355456712,1741183840561,-1689.91,0.00011097,2]
[355456713,1741183840572,-662.33,0.00011097,2]
[355456715,1741183840585,-500.0,0.00011097,2]
[355456716,1741183840595,-17008.52,0.00011097,2]
[355456717,1741183840605,-1014.14,0.00011097,2]
[355456718,1741183840615,-1156.02,0.00011097,2]
[355456719,1741183840625,-500.0,0.00011097,2]
[355456720,1741183840635,-500.0,0.00011097,2]
[355456721,1741183840645,-556.12,0.00011097,2]
[355456722,1741183840655,-1066.66,0.00011097,2]
[355456723,1741183840665,-1739.95,0.00011097,2]
[355456724,1741183840674,-586.9,0.00011097,2]
[355456725,1741183840684,-862.41,0.00011097,2]
[355456726,1741183840694,-500.0,0.00011097,2]
[355456727,1741183840704,-512.1,0.00011097,2]
[355456728,1741183840715,-1343.07,0.00011097,2]
[355456729,1741183840724,-649.66,0.00011097,2]
[355456730,1741183840734,-500.0,0.00011098,2]
[355456731,1741183840743,-500.0,0.00011098,2]
[355456732,1741183840753,-500.0,0.00011098,2]
[355456733,1741183840762,-500.0,0.00011098,2]
[355456734,1741183840772,-500.0,0.00011098,2]
[355456735,1741183840783,-500.0,0.00011098,2]
[355456736,1741183840793,-486.67948849,0.00011098,2]
[355456737,1741183840804,-500.0,0.00011098,2]
[355456738,1741183840814,-504.65707311,0.00011098,2]
[355456739,1741183840823,-500.0,0.00011098,2]
[355456740,1741183840833,-577.5,0.00011098,2]
[355456741,1741183840842,-500.0,0.00011098,2]
[355456742,1741183840852,-500.0,0.00011098,2]
[355456743,1741183840861,-500.0,0.00011098,2]
[355456744,1741183840871,-500.0,0.00011098,2]
[355456745,1741183840882,-500.0,0.00011098,2]
[355456746,1741183840892,-398.25610082,0.00011098,2]
[355456747,1741183840902,-500.0,0.00011098,2]
[355456748,1741183840911,-500.0,0.00011098,2]
[355456749,1741183840921,-500.0,0.00011098,2]
[355456750,1741183840931,-500.0,0.00011098,2]
[355456751,1741183840940,-525.15303915,0.00011098,2]
[355456752,1741183840950,-500.0,0.00011098,2]
[355456753,1741183840961,-500.0,0.00011098,2]
[355456754,1741183840971,-500.0,0.00011098,2]
[355456755,1741183840980,-500.0,0.00011098,2]
[355456756,1741183840990,-500.0,0.00011098,2]
[355456757,1741183841000,-535.08,0.00011098,2]
[355456758,1741183841010,-502.04830704,0.00011098,2]
[355456759,1741183841019,-430.92944176,0.00011098,2]
[355456760,1741183841029,-500.0,0.00011098,2]
[355456761,1741183841038,-500.0,0.00011098,2]
[355456762,1741183841047,-500.0,0.00011098,2]